fUST/lending_fUST_20250724
["ID","MTS","AMOUNT","RATE_DAILY","PERIOD"]
[374542934,1753345845029,-460.0,0.00020547,2]
[374542935,1753345845041,-460.0,0.00020547,2]
[374542936,1753345845051,-182.29,0.00020547,2]
[374542937,1753345845062,-460.0,0.00020547,2]
[374542938,1753345845072,-460.0,0.00020547,2]
[374542939,1753345845082,-460.0,0.00020547,2]
[374542941,1753345845092,-356.23867791,0.00020547,2]
[374542943,1753345845106,-460.0,0.00020547,2]
[374542944,1753345845116,-460.0,0.00020547,2]
[374542945,1753345845125,-312.36254151,0.00020547,2]
[374542946,1753345845134,-460.0,0.00020547,2]
[374542947,1753345845144,-838.44,0.00020547,2]
[374542948,1753345845154,-460.0,0.00020547,2]
[374542949,1753345845163,-460.0,0.00020547,2]
[374542950,1753345845173,-460.0,0.00020547,2]
[374542951,1753345845182,-550.83,0.00020547,2]
[374542952,1753345845191,-613.84,0.00020547,2]
[374542953,1753345845201,-460.0,0.00020547,2]
[374542954,1753345845211,-460.0,0.00020547,2]
[374542955,1753345845220,-460.0,0.00020547,2]
[374542956,1753345845229,-468.81,0.00020547,2]
[374542958,1753345845239,-1626.36,0.00020547,2]
[374542960,1753345845248,-460.0,0.00020547,2]
[374542961,1753345845257,-460.0,0.00020547,2]
[374542962,1753345845267,-460.0,0.00020547,2]
[374542963,1753345845277,-460.0,0.00020547,2]
[374542964,1753345845286,-1319.28,0.00020547,2]
[374542965,1753345845296,-460.0,0.00020547,2]
[374542966,1753345845305,-460.0,0.00020547,2]
[374542967,1753345845315,-3168.11,0.00020547,2]
[374542969,1753345845324,-460.0,0.00020547,2]
[374542971,1753345845333,-544.04902487,0.00020547,2]
[374542973,1753345845342,-460.0,0.00020547,2]
[374542974,1753345845353,-485.33637839,0.00020547,2]
[374542976,1753345845362,-1520.88,0.00020547,2]
[374542978,1753345845371,-460.0,0.00020547,2]
[374542979,1753345845381,-460.0,0.00020547,2]
[374542980,1753345845390,-460.0,0.00020547,2]
[374542981,1753345845399,-460.0,0.00020547,2]
[374542982,1753345845409,-460.0,0.00020547,2]
[374542983,1753345845418,-460.0,0.00020547,2]
[374542984,1753345845427,-460.0,0.00020547,2]
[374542985,1753345845437,-3303.74,0.00020547,2]
[374542986,1753345845446,-682.4,0.00020547,2]
[374542987,1753345845455,-460.0,0.00020547,2]
[374542988,1753345845464,-460.0,0.00020547,2]
[374542989,1753345845473,-460.0,0.00020547,2]
[374542990,1753345845483,-927.58,0.00020547,2]
[374542991,1753345845493,-460.0,0.00020547,2]
[374542992,1753345845502,-460.0,0.00020547,2]
[374542993,1753345845511,-460.0,0.00020547,2]
[374542994,1753345845521,-1983.98,0.00020547,2]
[374542995,1753345845530,-460.0,0.00020547,2]
[374542996,1753345845539,-460.0,0.00020547,2]
[374542997,1753345845548,-1170.08,0.00020547,2]
[374542998,1753345845558,-460.0,0.00020547,2]
[374542999,1753345845567,-460.0,0.00020547,2]
[374543000,1753345845577,-460.0,0.00020547,2]
[374543001,1753345845586,-1960.03,0.00020547,2]
[374543002,1753345845595,-1094.74,0.00020547,2]
[374543003,1753345845605,-460.0,0.00020547,2]
[374543004,1753345845614,-460.0,0.00020547,2]
[374543005,1753345845623,-460.0,0.00020547,2]
[374543006,1753345845632,-150.2119042,0.00020547,2]
[374543007,1753345845641,-460.0,0.00020547,2]
[374543008,1753345845650,-460.0,0.00020547,2]
[374543009,1753345845660,-460.0,0.00020547,2]
[374543010,1753345845669,-460.0,0.00020547,2]
[374543011,1753345845679,-460.0,0.00020547,2]
[374543012,1753345845689,-220.0,0.00020547,2]
[374543013,1753345845697,-460.0,0.00020547,2]
[374543014,1753345845707,-460.0,0.00020547,2]
[374543015,1753345845716,-1012.6,0.00020547,2]
[374543016,1753345845726,-460.0,0.00020547,2]
[374543017,1753345845735,-975.07,0.00020547,2]
[374543018,1753345845745,-460.0,0.00020547,2]
[374543019,1753345845754,-460.0,0.00020547,2]
[374543020,1753345845764,-151.98645579,0.00020548,2]
[374543021,1753345845773,-851.0,0.00020548,2]
[374543022,1753345845783,-687.0,0.00020548,2]
[374543023,1753345845792,-207.58775708,0.00020548,2]
[374543024,1753345845802,-600.0,0.00020577,2]
[374543025,1753345845812,-420.0,0.00020792,2]
[374543026,1753345845822,-460.0,0.00020821,2]
[374543027,1753345845833,-460.0,0.00020821,2]
[374543028,1753345845842,-460.0,0.00020821,2]
[374543029,1753345845851,-460.0,0.00020821,2]
[374543030,1753345845861,-460.0,0.00020821,2]
[374543031,1753345845871,-460.0,0.00020821,2]
[374543032,1753345845880,-460.0,0.00020821,2]
[374543033,1753345845891,-460.0,0.00020821,2]
[374543034,1753345845900,-530.36,0.00020821,2]
[374543035,1753345845909,-550.83,0.00020821,2]
[374543036,1753345845918,-613.84,0.00020821,2]
[374543037,1753345845927,-460.0,0.00020821,2]
[374543038,1753345845936,-460.0,0.00020821,2]
[374543039,1753345845946,-460.0,0.00020821,2]
[374543040,1753345845955,-468.81,0.00020821,2]
[374543041,1753345845965,-1626.36,0.00020821,2]
[374543042,1753345845974,-460.0,0.00020821,2]
[374543043,1753345845983,-460.0,0.00020821,2]
[374543044,1753345845993,-460.0,0.00020821,2]
[374543045,1753345846002,-460.0,0.00020821,2]
[374543046,1753345846011,-1319.28,0.00020821,2]
[374543047,1753345846023,-460.0,0.00020821,2]
[374543048,1753345846032,-460.0,0.00020821,2]
[374543049,1753345846041,-3168.11,0.00020821,2]
[374543050,1753345846050,-460.0,0.00020821,2]
[374543051,1753345846059,-460.0,0.00020821,2]
[374543052,1753345846069,-1520.88,0.00020821,2]
[374543053,1753345846078,-460.0,0.00020821,2]
[374543054,1753345846087,-465.79214898,0.00020821,2]
[374543055,1753345846099,-460.0,0.00020821,2]
[374543056,1753345846108,-460.0,0.00020821,2]
[374543057,1753345846118,-460.0,0.00020821,2]
[374543058,1753345846127,-460.0,0.00020821,2]
[374543059,1753345846136,-460.0,0.00020821,2]
[374543060,1753345846146,-3303.74,0.00020821,2]
[374543061,1753345846155,-682.4,0.00020821,2]
[374543062,1753345846165,-460.0,0.00020821,2]
[374543064,1753345846267,-460.0,0.00020821,2]
[374543065,1753345846277,-460.0,0.00020821,2]
[374543066,1753345846286,-927.58,0.00020821,2]
[374543067,1753345846295,-460.0,0.00020821,2]
[374543068,1753345846305,-460.0,0.00020821,2]
[374543069,1753345846314,-460.0,0.00020821,2]
[374543070,1753345846323,-460.0,0.00020821,2]
[374543071,1753345846332,-1983.98,0.00020821,2]
[374543072,1753345846342,-460.0,0.00020821,2]
[374543073,1753345846353,-1170.08,0.00020821,2]
[374543074,1753345846362,-460.0,0.00020821,2]
[374543075,1753345846371,-460.0,0.00020821,2]
[374543076,1753345846381,-460.0,0.00020821,2]
[374543077,1753345846390,-1960.03,0.00020821,2]
[374543078,1753345846400,-1094.74,0.00020821,2]
[374543079,1753345846411,-460.0,0.00020821,2]
[374543080,1753345846420,-460.0,0.00020821,2]
[374543081,1753345846429,-232.7034171,0.00020821,2]
[374543082,1753345846439,-460.0,0.00020821,2]
[374543083,1753345846449,-460.0,0.00020821,2]
[374543084,1753345846458,-460.0,0.00020821,2]
[374543085,1753345846467,-460.0,0.00020821,2]
[374543086,1753345846477,-460.0,0.00020821,2]
[374543087,1753345846486,-460.0,0.00020821,2]
[374543088,1753345846496,-460.0,0.00020821,2]
[374543089,1753345846505,-1012.6,0.00020821,2]
[374543090,1753345846514,-460.0,0.00020821,2]
[374543091,1753345846524,-460.0,0.00020821,2]
[374543092,1753345846533,-460.0,0.00020821,2]
[374543093,1753345846542,-851.0,0.00020822,2]
[374543094,1753345846551,-687.0,0.00020822,2]
[374543095,1753345846561,-480.834,0.00020855,2]
[374543096,1753345846570,-2088.88497564,0.000209,4]
[374543097,1753345846579,-158.977657,0.00020951,2]
[374543098,1753345846588,-260.0,0.00020987,2]
[374543099,1753345846599,-741.14122082,0.00021,2]
[374543100,1753345846608,-158.30900558,0.00021015,2]
[374543101,1753345846617,-2088.88497546,0.00021038,4]
[374543102,1753345846627,-500.0,0.00021064,2]
[374543103,1753345846636,-558.7,0.00021091,4]
[374543104,1753345846645,-460.0,0.00021095,2]
[374543105,1753345846655,-460.0,0.00021095,2]
[374543106,1753345846664,-460.0,0.00021095,2]
[374543107,1753345846673,-550.83,0.00021095,2]
[374543108,1753345846683,-613.84,0.00021095,2]
[374543109,1753345846692,-245.24622925,0.00021095,2]
[374543110,1753345846701,-460.0,0.00021095,2]
[374543111,1753345846711,-460.0,0.00021095,2]
[374543112,1753345846720,-468.81,0.00021095,2]
[374543113,1753345846729,-1626.36,0.00021095,2]
[374543114,1753345846739,-460.0,0.00021095,2]
[374543115,1753345846748,-460.0,0.00021095,2]
[374543116,1753345846757,-460.0,0.00021095,2]
[374543117,1753345846767,-460.0,0.00021095,2]
[374543118,1753345846776,-1319.28,0.00021095,2]
[374543119,1753345846785,-282.35505076,0.00021095,2]
[374543120,1753345846795,-460.0,0.00021095,2]
[374543121,1753345846804,-3168.11,0.00021095,2]
[374543122,1753345846813,-460.0,0.00021095,2]
[374543123,1753345846823,-460.0,0.00021095,2]
[374543124,1753345846832,-1520.88,0.00021095,2]
[374543125,1753345846841,-460.0,0.00021095,2]
[374543126,1753345846852,-460.0,0.00021095,2]
[374543127,1753345846862,-460.0,0.00021095,2]
[374543128,1753345846871,-460.0,0.00021095,2]
[374543129,1753345846881,-460.0,0.00021095,2]
[374543130,1753345846891,-460.0,0.00021095,2]
[374543131,1753345846900,-3303.74,0.00021095,2]
[374543132,1753345846910,-682.4,0.00021095,2]
[374543133,1753345846919,-460.0,0.00021095,2]
[374543134,1753345846928,-460.0,0.00021095,2]
[374543135,1753345846937,-927.58,0.00021095,2]
[374543136,1753345846947,-460.0,0.00021095,2]
[374543137,1753345846956,-460.0,0.00021095,2]
[374543138,1753345846966,-460.0,0.00021095,2]
[374543139,1753345846975,-460.0,0.00021095,2]
[374543140,1753345846984,-460.0,0.00021095,2]
[374543141,1753345846994,-1983.98,0.00021095,2]
[374543142,1753345847003,-460.0,0.00021095,2]
[374543143,1753345847013,-1170.08,0.00021095,2]
[374543144,1753345847027,-460.0,0.00021095,2]
[374543145,1753345847036,-460.0,0.00021095,2]
[374543146,1753345847045,-460.0,0.00021095,2]
[374543147,1753345847055,-1960.03,0.00021095,2]
[374543148,1753345847064,-1094.74,0.00021095,2]
[374543149,1753345847074,-460.0,0.00021095,2]
[374543150,1753345847084,-460.0,0.00021095,2]
[374543151,1753345847093,-460.0,0.00021095,2]
[374543152,1753345847104,-460.0,0.00021095,2]
[374543153,1753345847114,-460.0,0.00021095,2]
[374543154,1753345847123,-460.0,0.00021095,2]
[374543155,1753345847132,-460.0,0.00021095,2]
[374543156,1753345847141,-460.0,0.00021095,2]
[374543157,1753345847150,-460.0,0.00021095,2]
[374543158,1753345847159,-1012.6,0.00021095,2]
[374543159,1753345847169,-460.0,0.00021095,2]
[374543160,1753345847179,-460.0,0.00021095,2]
[374543161,1753345847188,-460.0,0.00021095,2]
[374543162,1753345847198,-851.0,0.00021096,2]
[374543163,1753345847207,-687.0,0.00021096,2]
[374543164,1753345847217,-2088.88497546,0.00021176,4]
[374543165,1753345847227,-150.0,0.00021178,2]
[374543166,1753345847236,-500.0,0.00021231,2]
[374543167,1753345847246,-500.0,0.00021231,2]
[374543168,1753345847255,-152.28680767,0.00021231,2]
[374543169,1753345847264,-500.0,0.00021242,2]
[374543170,1753345847273,-2088.88497546,0.00021314,5]
[374543171,1753345847282,-160.11934557,0.0002134,2]
[374543172,1753345847291,-500.69980759,0.0002134,2]
[374543173,1753345847300,-460.0,0.00021369,2]
[374543174,1753345847309,-460.0,0.00021369,2]
[374543175,1753345847319,-550.83,0.00021369,2]
[374543176,1753345847328,-613.84,0.00021369,2]
[374543177,1753345847337,-460.0,0.00021369,2]
[374543178,1753345847346,-468.81,0.00021369,2]
[374543179,1753345847357,-1626.36,0.00021369,2]
[374543180,1753345847366,-460.0,0.00021369,2]
[374543181,1753345847375,-460.0,0.00021369,2]
[374543182,1753345847383,-255.61,0.00021369,2]
[374543183,1753345847393,-460.0,0.00021369,2]
[374543184,1753345847402,-1319.28,0.00021369,2]
[374543185,1753345847412,-460.0,0.00021369,2]
[374543186,1753345847422,-3168.11,0.00021369,2]
[374543187,1753345847431,-460.0,0.00021369,2]
[374543188,1753345847440,-460.0,0.00021369,2]
[374543189,1753345847450,-1520.88,0.00021369,2]
[374543190,1753345847459,-460.0,0.00021369,2]
[374543191,1753345847468,-460.0,0.00021369,2]
[374543192,1753345847478,-460.0,0.00021369,2]
[374543193,1753345847488,-460.0,0.00021369,2]
[374543194,1753345847497,-460.0,0.00021369,2]
[374543195,1753345847506,-460.0,0.00021369,2]
[374543196,1753345847515,-3303.74,0.00021369,2]
[374543198,1753345847524,-682.4,0.00021369,2]
[374543200,1753345847534,-460.0,0.00021369,2]
[374543202,1753345847543,-188.14487007,0.00021369,2]
[374543204,1753345847553,-927.58,0.00021369,2]
[374543206,1753345847562,-460.0,0.00021369,2]
[374543208,1753345847571,-460.0,0.00021369,2]
[374543210,1753345847580,-460.0,0.00021369,2]
[374543212,1753345847589,-460.0,0.00021369,2]
[374543214,1753345847602,-460.0,0.00021369,2]
[374543216,1753345847611,-460.0,0.00021369,2]
[374543218,1753345847620,-1983.98,0.00021369,2]
[374543220,1753345847629,-1170.08,0.00021369,2]
[374543222,1753345847638,-460.0,0.00021369,2]
[374543224,1753345847648,-1960.03,0.00021369,2]
[374543226,1753345847658,-1094.74,0.00021369,2]
[374543227,1753345847668,-460.0,0.00021369,2]
[374543230,1753345847677,-460.0,0.00021369,2]
[374543232,1753345847687,-460.0,0.00021369,2]
[374543233,1753345847696,-460.0,0.00021369,2]
[374543235,1753345847706,-204.65519776,0.00021369,2]
[374543237,1753345847715,-460.0,0.00021369,2]
[374543239,1753345847724,-460.0,0.00021369,2]
[374543242,1753345847734,-460.0,0.00021369,2]
[374543243,1753345847743,-460.0,0.00021369,2]
[374543245,1753345847752,-1012.6,0.00021369,2]
[374543247,1753345847761,-460.0,0.00021369,2]
[374543249,1753345847771,-460.0,0.00021369,2]
[374543251,1753345847779,-460.0,0.00021369,2]
[374543253,1753345847789,-851.0,0.0002137,2]
[374543255,1753345847798,-687.0,0.0002137,2]
[374543257,1753345847808,-558.7,0.00021437,4]
[374543259,1753345847817,-2088.88497546,0.00021452,5]
[374543261,1753345847826,-151.0,0.000215,3]
[374543263,1753345847837,-360.0,0.00021535,2]
[374543265,1753345847846,-2088.88497546,0.0002159,5]
[374543267,1753345847856,-460.0,0.00021643,2]
[374543269,1753345847865,-460.0,0.00021643,2]
[374543271,1753345847874,-550.83,0.00021643,2]
[374543273,1753345847884,-613.84,0.00021643,2]
[374543275,1753345847893,-460.0,0.00021643,2]
[374543277,1753345847902,-468.81,0.00021643,2]
[374543279,1753345847911,-1626.36,0.00021643,2]
[374543281,1753345847920,-460.0,0.00021643,2]
[374543283,1753345847930,-460.0,0.00021643,2]
[374543285,1753345847939,-460.0,0.00021643,2]
[374543287,1753345847948,-1319.28,0.00021643,2]
[374543289,1753345847958,-460.0,0.00021643,2]
[374543291,1753345847968,-3168.11,0.00021643,2]
[374543293,1753345847978,-460.0,0.00021643,2]
[374543295,1753345847987,-460.0,0.00021643,2]
[374543297,1753345847996,-1520.88,0.00021643,2]
[374543299,1753345848006,-456.43,0.00021643,2]
[374543301,1753345848015,-460.0,0.00021643,2]
[374543303,1753345848028,-460.0,0.00021643,2]
[374543305,1753345848038,-460.0,0.00021643,2]
[374543307,1753345848048,-460.0,0.00021643,2]
[374543309,1753345848057,-460.0,0.00021643,2]
[374543311,1753345848067,-3303.74,0.00021643,2]
[374543313,1753345848077,-682.4,0.00021643,2]
[374543315,1753345848086,-460.0,0.00021643,2]
[374543317,1753345848096,-927.58,0.00021643,2]
[374543319,1753345848108,-460.0,0.00021643,2]
[374543321,1753345848118,-460.0,0.00021643,2]
[374543323,1753345848127,-460.0,0.00021643,2]
[374543325,1753345848137,-460.0,0.00021643,2]
[374543327,1753345848146,-460.0,0.00021643,2]
[374543329,1753345848155,-460.0,0.00021643,2]
[374543331,1753345848164,-1983.98,0.00021643,2]
[374543333,1753345848173,-460.0,0.00021643,2]
[374543335,1753345848183,-1170.08,0.00021643,2]
[374543337,1753345848193,-1960.03,0.00021643,2]
[374543339,1753345848203,-1094.74,0.00021643,2]
[374543341,1753345848213,-460.0,0.00021643,2]
[374543343,1753345848222,-460.0,0.00021643,2]
[374543345,1753345848231,-460.0,0.00021643,2]
[374543347,1753345848241,-460.0,0.00021643,2]
[374543349,1753345848250,-460.0,0.00021643,2]
[374543350,1753345848259,-460.0,0.00021643,2]
[374543352,1753345848268,-460.0,0.00021643,2]
[374543354,1753345848278,-460.0,0.00021643,2]
[374543356,1753345848287,-1012.6,0.00021643,2]
[374543358,1753345848296,-460.0,0.00021643,2]
[374543360,1753345848306,-460.0,0.00021643,2]
[374543362,1753345848315,-460.0,0.00021643,2]
[374543364,1753345848324,-851.0,0.00021644,2]
[374543366,1753345848333,-687.0,0.00021644,2]
[374543368,1753345848342,-2088.88497546,0.00021728,5]
[374543370,1753345848352,-992.93993262,0.00021729,2]
[374543372,1753345848361,-558.7,0.00021784,5]
[374543374,1753345848370,-2088.88497546,0.00021866,6]
[374543376,1753345848380,-162.73233561,0.00021917,2]
[374543378,1753345848389,-460.0,0.00021917,2]
[374543380,1753345848398,-500.0,0.00021917,2]
[374543391,1753345848488,-500.0,0.00021917,2]
[374543393,1753345848509,-500.0,0.00021917,2]
[374543395,1753345848519,-500.0,0.00021917,2]
[374543397,1753345848530,-550.83,0.00021917,2]
[374543399,1753345848540,-500.0,0.00021917,2]
[374543401,1753345848550,-197.03102004,0.00021917,2]
[374543403,1753345848561,-613.84,0.00021917,2]
[374543405,1753345848572,-460.0,0.00021917,2]
[374543407,1753345848583,-468.81,0.00021917,2]
[374543409,1753345848593,-1626.36,0.00021917,2]
[374543411,1753345848607,-460.0,0.00021917,2]
[374543413,1753345848619,-460.0,0.00021917,2]
[374543415,1753345848629,-460.0,0.00021917,2]
[374543417,1753345848639,-1319.28,0.00021917,2]
[374543419,1753345848649,-460.0,0.00021917,2]
[374543421,1753345848658,-3168.11,0.00021917,2]
[374543423,1753345848668,-460.0,0.00021917,2]
[374543425,1753345848679,-376.40490601,0.00021917,2]
[374543427,1753345848689,-1520.88,0.00021917,2]
[374543429,1753345848698,-460.0,0.00021917,2]
[374543431,1753345848708,-460.0,0.00021917,2]
[374543433,1753345848718,-460.0,0.00021917,2]
[374543435,1753345848728,-460.0,0.00021917,2]
[374543437,1753345848737,-460.0,0.00021917,2]
[374543439,1753345848747,-3303.74,0.00021917,2]
[374543441,1753345848756,-682.4,0.00021917,2]
[374543443,1753345848766,-460.0,0.00021917,2]
[374543444,1753345848775,-927.58,0.00021917,2]
[374543446,1753345848783,-460.0,0.00021917,2]
[374543448,1753345848791,-460.0,0.00021917,2]
[374543450,1753345848800,-460.0,0.00021917,2]
[374543452,1753345848810,-460.0,0.00021917,2]
[374543454,1753345848821,-460.0,0.00021917,2]
[374543456,1753345848830,-460.0,0.00021917,2]
[374543458,1753345848839,-1983.98,0.00021917,2]
[374543460,1753345848848,-460.0,0.00021917,2]
[374543462,1753345848860,-1170.08,0.00021917,2]
[374543464,1753345848871,-1960.03,0.00021917,2]
[374543466,1753345848880,-1094.74,0.00021917,2]
[374543468,1753345848890,-460.0,0.00021917,2]
[374543470,1753345848900,-460.0,0.00021917,2]
[374543472,1753345848909,-460.0,0.00021917,2]
[374543474,1753345848919,-460.0,0.00021917,2]
[374543476,1753345848928,-460.0,0.00021917,2]
[374543478,1753345848937,-460.0,0.00021917,2]
[374543480,1753345848946,-306.40724189,0.00021917,2]
[374543482,1753345848955,-460.0,0.00021917,2]
[374543484,1753345848965,-1012.6,0.00021917,2]
[374543486,1753345848974,-460.0,0.00021917,2]
[374543488,1753345848983,-460.0,0.00021917,2]
[374543490,1753345848993,-460.0,0.00021917,2]
[374543492,1753345849003,-851.0,0.00021918,2]
[374543494,1753345849013,-687.0,0.00021918,2]
[374543496,1753345849026,-150.12541734,0.00021918,2]
[374543498,1753345849037,-1879.03,0.00022,7]
[374543500,1753345849047,-151.0,0.00022,8]
[374543502,1753345849057,-8291.67,0.00022,7]
[374543504,1753345849070,-157.0,0.00022,2]
[374543506,1753345849080,-157.0,0.00022,2]
[374543508,1753345849090,-1412.18,0.00022,7]
[374543510,1753345849103,-39099.84,0.00022,2]
[374543512,1753345849114,-3007.35833008,0.00022,2]
[374543513,1753345849126,-4538.87676424,0.00022,5]
[374543516,1753345849138,-2088.88497546,0.00022003,6]
[374543518,1753345849149,-7583.61969851,0.00022076,2]
[374543520,1753345849161,-460.0,0.00022083,2]
[374543522,1753345849172,-558.7,0.0002213,5]
[374543524,1753345849183,-2088.88497546,0.00022141,6]
[374543526,1753345849194,-500.0,0.0002216,2]
[374543528,1753345849206,-460.0,0.00022191,2]
[374543530,1753345849217,-550.83,0.00022191,2]
[374543531,1753345849230,-613.84,0.00022191,2]
[374543533,1753345849242,-460.0,0.00022191,2]
[374543536,1753345849252,-468.81,0.00022191,2]
[374543537,1753345849262,-1626.36,0.00022191,2]
[374543539,1753345849273,-460.0,0.00022191,2]
[374543541,1753345849283,-460.0,0.00022191,2]
[374543543,1753345849293,-460.0,0.00022191,2]
[374543545,1753345849303,-1319.28,0.00022191,2]
[374543547,1753345849312,-460.0,0.00022191,2]
[374543549,1753345849322,-3168.11,0.00022191,2]
[374543551,1753345849332,-460.0,0.00022191,2]
[374543553,1753345849342,-1520.88,0.00022191,2]
[374543555,1753345849353,-460.0,0.00022191,2]
[374543557,1753345849362,-460.0,0.00022191,2]
[374543559,1753345849372,-460.0,0.00022191,2]
[374543561,1753345849381,-460.0,0.00022191,2]
[374543563,1753345849390,-460.0,0.00022191,2]
[374543565,1753345849399,-3303.74,0.00022191,2]
[374543567,1753345849409,-682.4,0.00022191,2]
[374543569,1753345849418,-460.0,0.00022191,2]
[374543571,1753345849428,-927.58,0.00022191,2]
[374543573,1753345849437,-460.0,0.00022191,2]
[374543575,1753345849447,-460.0,0.00022191,2]
[374543577,1753345849456,-460.0,0.00022191,2]
[374543579,1753345849466,-460.0,0.00022191,2]
[374543581,1753345849475,-397.14,0.00022191,2]
[374543583,1753345849485,-1983.98,0.00022191,2]
[374543585,1753345849494,-460.0,0.00022191,2]
[374543587,1753345849503,-1170.08,0.00022191,2]
[374543589,1753345849513,-1960.03,0.00022191,2]
[374543591,1753345849523,-1094.74,0.00022191,2]
[374543593,1753345849533,-460.0,0.00022191,2]
[374543595,1753345849543,-460.0,0.00022191,2]
[374543597,1753345849552,-460.0,0.00022191,2]
[374543599,1753345849561,-460.0,0.00022191,2]
[374543601,1753345849570,-460.0,0.00022191,2]
[374543603,1753345849580,-460.0,0.00022191,2]
[374543605,1753345849589,-460.0,0.00022191,2]
[374543607,1753345849598,-1012.6,0.00022191,2]
[374543609,1753345849610,-460.0,0.00022191,2]
[374543611,1753345849619,-491.60167666,0.00022191,2]
[374543612,1753345849628,-460.0,0.00022191,2]
[374543615,1753345849638,-851.0,0.00022192,2]
[374543616,1753345849648,-687.0,0.00022192,2]
[374543618,1753345849658,-2088.88497546,0.00022279,6]
[374543620,1753345849667,-474.34331691,0.00022329,2]
[374543622,1753345849677,-2088.88497546,0.00022417,7]
[374543623,1753345849688,-460.0,0.00022465,2]
[374543624,1753345849698,-550.83,0.00022465,2]
[374543625,1753345849708,-613.84,0.00022465,2]
[374543626,1753345849717,-1757.13,0.00022465,2]
[374543627,1753345849727,-421.28426585,0.00022465,2]
[374543628,1753345849736,-468.81,0.00022465,2]
[374543629,1753345849746,-1626.36,0.00022465,2]
[374543630,1753345849757,-404.94547247,0.00022465,2]
[374543631,1753345849767,-460.0,0.00022465,2]
[374543632,1753345849777,-460.0,0.00022465,2]
[374543633,1753345849787,-1319.28,0.00022465,2]
[374543634,1753345849797,-460.0,0.00022465,2]
[374543635,1753345849806,-3168.11,0.00022465,2]
[374543636,1753345849815,-473.83700049,0.00022465,2]
[374543637,1753345849826,-1520.88,0.00022465,2]
[374543638,1753345849836,-242.47765955,0.00022465,2]
[374543639,1753345849846,-460.0,0.00022465,2]
[374543640,1753345849862,-460.0,0.00022465,2]
[374543641,1753345849872,-460.0,0.00022465,2]
[374543642,1753345849882,-3303.74,0.00022465,2]
[374543643,1753345849891,-682.4,0.00022465,2]
[374543644,1753345849900,-354.41743296,0.00022465,2]
[374543645,1753345849910,-927.58,0.00022465,2]
[374543646,1753345849920,-489.70839363,0.00022465,2]
[374543647,1753345849929,-460.0,0.00022465,2]
[374543648,1753345849939,-460.0,0.00022465,2]
[374543649,1753345849949,-460.0,0.00022465,2]
[374543650,1753345849959,-1983.98,0.00022465,2]
[374543651,1753345849969,-224.43324766,0.00022465,2]
[374543652,1753345850095,-235.56675234,0.00022465,2]
[374543653,1753345850108,-1170.08,0.00022465,2]
[374543654,1753345850118,-1094.74,0.00022465,2]
[374543655,1753345850128,-1960.03,0.00022465,2]
[374543656,1753345850138,-460.0,0.00022465,2]
[374543657,1753345850147,-461.57322008,0.00022465,2]
[374543658,1753345850156,-460.0,0.00022465,2]